fUSD/lending_fUSD_20240728
["ID","MTS","AMOUNT","RATE_DAILY","PERIOD"]
[333455988,1722143439773,-2102.08792861,0.00011,2]
[333455989,1722143439784,-6998.74792347,0.00011,2]
[333455990,1722143439795,-9284.18896675,0.00011,2]
[333455994,1722143440442,-160.87,0.00010387,2]
[333455995,1722143440451,-160.87,0.0001039,2]
[333455996,1722143440461,-160.87,0.00010393,2]
[333455997,1722143440470,-306.42035507,0.00011,2]
[333455998,1722143440499,-909.99675132,0.00011,2]
[333455999,1722143440617,-645.18180464,0.00010199,2]
[333456000,1722143440629,-1494.53187952,0.00010199,2]
[333456001,1722143440641,-660.68631584,0.00010199,2]
[333456002,1722143440651,-6418.40068416,0.00011,2]
[333456003,1722143442717,-500.0,0.00010999,2]
[333456004,1722143442730,-354.97137608,0.00010999,2]
[333456005,1722143442741,-127.14709891,0.00010999,2]
[333456006,1722143442825,-372.85290109,0.00010999,2]
[333456007,1722143442835,-297.51709891,0.00010999,2]
[333456008,1722143443016,-202.48290109,0.00010999,2]
[333456009,1722143443027,-500.0,0.00010999,2]
[333456010,1722143443039,-500.0,0.00010999,2]
[333456012,1722143443049,-500.0,0.00010999,2]
[333456014,1722143443059,-500.0,0.00010999,2]
[333456015,1722143443071,-500.0,0.00010999,2]
[333456016,1722143443084,-500.0,0.00010999,2]
[333456017,1722143443094,-500.0,0.00010999,2]
[333456018,1722143443103,-21239.2710989,0.00011,2]
[333456019,1722143443115,-389.44550813,0.00011,2]
[333456020,1722143443127,-557.38108761,0.00011,2]
[333456032,1722143443389,-12546.84603349,0.00011,2]
[333456033,1722143443502,-15914.47074738,0.00011,2]
[333456034,1722143443560,-12003.66738723,0.00011,2]
[333456035,1722143443672,-674.84,0.00011,2]
[333456036,1722143443685,-118052.48760997,0.00011,2]
[333456072,1722143448606,-580.0,0.00011,2]
[333456073,1722143448616,-507.15276736,0.00011,2]
[333456074,1722143448664,-6791.43882278,0.00011,2]
[333456075,1722143448676,-451.65549178,0.00011,2]
[333456076,1722143448722,-75763.62811843,0.00011,2]
[333456077,1722143448839,-3109.41954188,0.00011,2]
[333456085,1722143532498,906.0,0.0002,90]
[333456086,1722143534114,-488.0,0.00010193,2]
[333456087,1722143534137,-10000.0,0.00010448,2]
[333456088,1722143534158,-1146.49728339,0.0001078,2]
[333456089,1722143534179,-1086.69258784,0.0001078,2]
[333456090,1722143534202,-3209.7081172,0.000108,2]
[333456091,1722143534223,-3000.0,0.0001089,2]
[333456092,1722143534245,-1000.0,0.00010899,2]
[333456093,1722143534266,-1273.5628,0.000109,2]
[333456094,1722143534288,-29717.9276,0.000109,2]
[333456095,1722143534308,-718.610488,0.000109,2]
[333456096,1722143534329,-397.89295288,0.000109,2]
[333456097,1722143534350,-164437.0,0.000109,2]
[333456098,1722143534371,-4880.4513382,0.00010994,2]
[333456099,1722143534393,-1811.2400854,0.00010994,2]
[333456100,1722143534415,-500.0,0.00010998,2]
[333456101,1722143534435,-210.6438593,0.00010999,2]
[333456102,1722143534456,-5665.0062404,0.00010999,2]
[333456103,1722143534479,-500.0,0.00010999,2]
[333456104,1722143534500,-260.82714735,0.00010999,2]
[333456105,1722143534522,-500.0,0.00010999,2]
[333456106,1722143534544,-500.0,0.00010999,2]
[333456107,1722143534566,-500.0,0.00010999,2]
[333456108,1722143534588,-386.17215109,0.00010999,2]
[333456109,1722143534609,-1049.45031214,0.00010999,2]
[333456110,1722143534629,-300.41633906,0.00010999,2]
[333456111,1722143534652,-500.0,0.00010999,2]
[333456112,1722143534673,-500.0,0.00010999,2]
[333456113,1722143534695,-200.0,0.00010999,2]
[333456114,1722143534717,-1741.25,0.00010999,2]
[333456115,1722143534737,-524.0,0.00011,2]
[333456116,1722143534762,-10396627.79256624,0.00011,2]
[333456117,1722143534783,-2000.0,0.00011,2]
[333456118,1722143534807,-1666001.0328505,0.00011,2]
[333456119,1722143534831,-4326365.82528101,0.00011,2]
[333456124,1722144422194,-397.0,8.218e-05,2]
[333456125,1722144422216,-3048.30266326,8.219e-05,2]
[333456126,1722144422240,-723.47,8.219e-05,2]
[333456127,1722144422262,-5367.862614,8.857e-05,2]
[333456128,1722144422284,-373.23,8.902e-05,2]
[333456129,1722144422310,-300.0,9e-05,2]
[333456130,1722144422334,-500.0,9.001e-05,2]
[333456131,1722144422567,-1222.61,9.132e-05,2]
[333456132,1722144422591,-484.06,9.176e-05,2]
[333456133,1722144422613,-751.87,9.19e-05,2]
[333456134,1722144422634,-303.99,9.198e-05,2]
[333456135,1722144422656,-250.0,9.226e-05,2]
[333456136,1722144422678,-150.0,9.227e-05,2]
[333456137,1722144422699,-329.37,9.228e-05,2]
[333456138,1722144422723,-23900.0,9.228e-05,2]
[333456155,1722144434550,-174.63,9.234e-05,2]
[333456156,1722144434572,-801.58,9.245e-05,2]
[333456157,1722144434597,-609.6,9.263e-05,2]
[333456158,1722144434619,-405.47,9.274e-05,2]
[333456159,1722144441998,-260.58,9.735e-05,2]
[333456160,1722144442022,-260.58,9.738e-05,2]
[333456161,1722144442050,-260.58,9.741e-05,2]
[333456162,1722144442075,-260.58,9.743e-05,2]
[333456163,1722144442100,-678.3,9.743e-05,2]
[333456164,1722144442124,-260.58,9.746e-05,2]
[333456165,1722144442151,-260.58,9.748e-05,2]
[333456166,1722144442176,-1640.38,9.751e-05,2]
[333456167,1722144442199,-882.68,9.751e-05,2]
[333456168,1722144442225,-260.58,9.751e-05,2]
[333456169,1722144442249,-260.58,9.753e-05,2]
[333456170,1722144442272,-424.50832274,9.753e-05,2]
[333456178,1722144559291,150.0,0.0002,90]
[333456221,1722144631464,-1316.86,9.3e-05,2]
[333456223,1722144631474,-512.32,9.402e-05,2]
[333456224,1722144631485,-250.0,9.428e-05,2]
[333456225,1722144631497,-300.0,9.752e-05,2]
[333456226,1722144631507,-150.0,9.752e-05,2]
[333456227,1722144631519,-7214.3473487,9.753e-05,2]
[333456228,1722144631532,-1001.55012815,9.753e-05,2]
[333456229,1722144631544,-1007.07587274,9.753e-05,2]
[333456230,1722144631556,-791.24822385,9.753e-05,2]
[333456231,1722144631594,-10.42378842,9.753e-05,2]
[333456232,1722144631603,-260.58,9.756e-05,2]
[333456233,1722144631613,-178.99621158,9.759e-05,2]
[333456243,1722144632003,-81.58378842,9.759e-05,2]
[333456244,1722144632013,-3452.03121324,9.759e-05,2]
[333456245,1722144632024,-968.47519875,9.759e-05,2]
[333456246,1722144632034,-5.4821754,9.761e-05,2]
[333456247,1722144632046,-255.0978246,9.761e-05,2]
[333456248,1722144632056,-167.47577236,9.764e-05,2]
[333456249,1722144632068,-93.10422764,9.764e-05,2]
[333456250,1722144632077,-260.58,9.766e-05,2]
[333456251,1722144632086,-260.58,9.769e-05,2]
[333456252,1722144632095,-82.57024062,9.771e-05,2]
[333456253,1722144632106,-178.00975938,9.771e-05,2]
[333456254,1722144632115,-839.03336806,9.771e-05,2]
[333456255,1722144632127,-1716.40863194,9.771e-05,2]
[333456256,1722144632136,-260.58,9.774e-05,2]
[333456257,1722144632146,-260.58,9.777e-05,2]
[333456258,1722144632155,-260.58,9.779e-05,2]
[333456259,1722144632164,-260.58,9.782e-05,2]
[333456260,1722144632174,-260.58,9.784e-05,2]
[333456261,1722144632184,-825.06,9.825e-05,2]
[333456262,1722144632194,-500.0,9.9e-05,3]
[333456263,1722144632203,-1000.0,0.0001,3]
[333456264,1722144632213,-1500.0,0.000101,3]
[333456265,1722144632223,-834.0,0.00010141,2]
[333456266,1722144632232,-420.34,0.00010141,2]
[333456267,1722144632243,-834.0,0.00010141,2]
[333456268,1722144632252,-420.34,0.00010141,2]
[333456269,1722144632261,-420.13,0.00010141,2]
[333456270,1722144632270,-834.0,0.00010141,2]
[333456271,1722144632279,-834.0,0.00010141,2]
[333456272,1722144632288,-834.0,0.00010141,2]
[333456273,1722144632298,-834.0,0.00010141,2]
[333456274,1722144632307,-834.0,0.00010141,2]
[333456275,1722144632317,-1620.06,0.00010141,2]
[333456276,1722144632326,-2000.0,0.000102,3]
[333456277,1722144632336,-299.99,0.000103,2]
[333456278,1722144632346,-2500.0,0.000103,3]
[333456279,1722144632355,-500.0,0.000104,3]
[333456280,1722144632364,-609.6,0.0001042,2]
[333456281,1722144632374,-723.47,0.00010431,2]
[333456282,1722144632384,-500.0,0.000105,3]
[333456283,1722144632393,-512.32,0.00010577,2]
[333456284,1722144632403,-500.0,0.000106,3]
[333456285,1722144632413,-500.0,0.000107,3]
[333456286,1722144632422,-420.0,0.00010727,2]
[333456287,1722144632433,-1042.82476342,0.0001078,2]
[333456288,1722144632447,-14133.3423,0.000108,2]
[333456289,1722144632457,-441.7725,0.000108,2]
[333456290,1722144632467,-700.0,0.000108,3]
[333456291,1722144632476,-1286.28942263,0.0001089,2]
[333456292,1722144632490,-1660.29818461,0.0001089,2]
[333456293,1722144632502,-53.41239276,0.0001089,2]
[333456294,1722144632512,-1433.7035,0.00010899,2]
[333456295,1722144632522,-2500.0,0.00010899,2]
[333456296,1722144632531,-8229.3478,0.000109,2]
[333456297,1722144632542,-601.5744,0.000109,2]
[333456298,1722144632551,-11494.3431,0.000109,2]
[333456299,1722144632561,-82514.2704,0.000109,2]
[333456300,1722144632571,-10000.0,0.000109,2]
[333456301,1722144632580,-1000.0,0.000109,2]
[333456302,1722144632590,-177.35582664,0.000109,2]
[333456303,1722144632599,-612.23594648,0.000109,2]
[333456304,1722144632608,-11111.82417425,0.000109,2]
[333456305,1722144632618,-2647.09688676,0.000109,2]
[333456306,1722144632627,-500.0,0.00010911,2]
[333456307,1722144632637,-500.0,0.00010912,2]
[333456308,1722144632646,-200.0,0.00010959,2]
[333456309,1722144632656,-250.0,0.00010959,2]
[333456310,1722144632665,-154.16,0.0001099,2]
[333456311,1722144632675,-154.16,0.0001099,2]
[333456312,1722144632685,-154.16,0.0001099,2]
[333456313,1722144632694,-154.16,0.0001099,2]
[333456314,1722144632703,-154.16,0.0001099,2]
[333456315,1722144632713,-154.16,0.0001099,2]
[333456316,1722144632722,-154.16,0.0001099,2]
[333456317,1722144632732,-154.16,0.0001099,2]
[333456318,1722144632743,-154.16,0.0001099,2]
[333456319,1722144632752,-154.16,0.0001099,2]
[333456320,1722144632761,-154.16,0.0001099,2]
[333456321,1722144632771,-154.16,0.0001099,2]
[333456322,1722144632781,-154.16,0.0001099,2]
[333456323,1722144632791,-154.16,0.0001099,2]
[333456324,1722144632801,-154.16,0.0001099,2]
[333456325,1722144632811,-154.16,0.0001099,2]
[333456326,1722144633013,-154.16,0.0001099,2]
[333456327,1722144633023,-154.16,0.0001099,2]
[333456328,1722144633032,-154.16,0.0001099,2]
[333456329,1722144633042,-154.16,0.0001099,2]
[333456330,1722144633051,-154.16,0.0001099,2]
[333456331,1722144633061,-154.16,0.0001099,2]
[333456332,1722144633070,-154.16,0.0001099,2]
[333456333,1722144633080,-753.93874405,0.00010997,2]
[333456334,1722144633089,-500.0,0.00010998,2]
[333456335,1722144633099,-550.18428788,0.00010998,2]
[333456336,1722144633108,-500.0,0.00010998,2]
[333456337,1722144633118,-379.47,0.00010998,2]
[333456338,1722144633127,-500.0,0.00010998,2]
[333456339,1722144633137,-500.0,0.00010998,2]
[333456340,1722144633146,-500.0,0.00010998,2]
[333456341,1722144633155,-500.0,0.00010998,2]
[333456342,1722144633164,-500.0,0.00010998,2]
[333456343,1722144633173,-175.06865459,0.00010998,2]
[333456344,1722144633182,-500.0,0.00010998,2]
[333456345,1722144633193,-500.0,0.00010998,2]
[333456346,1722144633202,-500.0,0.00010998,2]
[333456347,1722144633212,-500.0,0.00010998,2]
[333456348,1722144633221,-500.0,0.00010998,2]
[333456349,1722144633230,-500.0,0.00010998,2]
[333456350,1722144633241,-500.0,0.00010998,2]
[333456351,1722144633252,-500.0,0.00010998,2]
[333456352,1722144633261,-500.0,0.00010998,2]
[333456353,1722144633271,-375.044,0.00010998,2]
[333456354,1722144633281,-402.39140849,0.00010998,2]
[333456355,1722144633290,-500.0,0.00010998,2]
[333456356,1722144633300,-500.0,0.00010998,2]
[333456357,1722144633310,-500.0,0.00010998,2]
[333456358,1722144633319,-500.0,0.00010998,2]
[333456359,1722144633329,-500.0,0.00010998,2]
[333456360,1722144633338,-500.0,0.00010998,2]
[333456361,1722144633348,-505.82293202,0.00010998,2]
[333456362,1722144633358,-401.48981449,0.00010998,2]
[333456363,1722144633368,-500.0,0.00010998,2]
[333456364,1722144633378,-500.0,0.00010998,2]
[333456365,1722144633388,-183.61,0.00010999,2]
[333456366,1722144633397,-1596.48259612,0.00010999,3]
[333456367,1722144633407,-500.0,0.00010999,2]
[333456368,1722144633416,-500.0,0.00010999,2]
[333456369,1722144633426,-500.0,0.00010999,2]
[333456370,1722144633440,-434.19205534,0.00010999,2]
[333456371,1722144633449,-500.0,0.00010999,2]
[333456372,1722144633459,-500.0,0.00010999,2]
[333456373,1722144633468,-500.0,0.00010999,2]
[333456374,1722144633479,-176.94067105,0.00010999,2]
[333456375,1722144633491,-426.98,0.00010999,2]
[333456376,1722144633501,-500.0,0.00010999,2]
[333456377,1722144633511,-500.0,0.00010999,2]
[333456378,1722144633520,-500.0,0.00010999,2]
[333456379,1722144633530,-361.29109459,0.00010999,2]
[333456380,1722144633539,-150.0,0.00010999,2]
[333456381,1722144633549,-500.0,0.00010999,2]
[333456382,1722144633559,-500.0,0.00010999,2]
[333456383,1722144633569,-492.89,0.00010999,2]
[333456384,1722144633579,-637.74999999,0.00010999,2]
[333456385,1722144633588,-500.0,0.00010999,2]
[333456386,1722144633597,-208.89651135,0.00010999,2]
[333456387,1722144633607,-500.0,0.00010999,2]
[333456388,1722144633618,-267.06,0.00010999,2]
[333456389,1722144633627,-500.0,0.00010999,2]
[333456390,1722144633637,-634.08739782,0.00010999,2]
[333456391,1722144633646,-500.0,0.00010999,2]
[333456392,1722144633656,-500.0,0.00010999,2]
[333456393,1722144633665,-500.0,0.00010999,2]
[333456394,1722144633675,-500.0,0.00010999,2]
[333456395,1722144633684,-500.0,0.00010999,2]
[333456396,1722144633693,-500.0,0.00010999,2]
[333456397,1722144633703,-373.22,0.00010999,2]
[333456398,1722144633713,-500.0,0.00010999,2]
[333456399,1722144633722,-376.81044868,0.00010999,2]
[333456400,1722144633731,-504.09062818,0.00010999,2]
[333456401,1722144633741,-501.46409482,0.00010999,2]
[333456402,1722144633751,-500.0,0.00010999,2]
[333456403,1722144633760,-500.0,0.00010999,2]
[333456404,1722144633770,-500.0,0.00010999,2]
[333456405,1722144633779,-500.0,0.00010999,2]
[333456406,1722144633789,-508.17385142,0.00010999,2]
[333456407,1722144633798,-6335.27,0.00010999,2]
[333456408,1722144633807,-500.0,0.00010999,2]
[333456409,1722144633816,-500.0,0.00010999,2]
[333456410,1722144633826,-165.32,0.00010999,2]
[333456411,1722144633835,-500.0,0.00010999,2]
[333456412,1722144633844,-500.0,0.00010999,2]
[333456413,1722144633853,-500.0,0.00010999,2]
[333456414,1722144633862,-500.0,0.00010999,2]
[333456415,1722144633871,-500.0,0.00010999,2]
[333456416,1722144633880,-500.0,0.00010999,2]
[333456417,1722144633890,-500.0,0.00010999,2]
[333456418,1722144633899,-500.0,0.00010999,2]
[333456419,1722144633908,-500.0,0.00010999,2]
[333456420,1722144633918,-500.0,0.00010999,2]
[333456421,1722144633927,-500.0,0.00010999,2]
[333456422,1722144633936,-410.1540272,0.00010999,2]
[333456423,1722144633945,-500.0,0.00010999,2]
[333456424,1722144633954,-500.0,0.00010999,2]
[333456425,1722144633963,-500.0,0.00010999,2]
[333456426,1722144633973,-500.0,0.00010999,2]
[333456427,1722144633982,-400.8225218,0.00010999,2]
[333456428,1722144633993,-500.0,0.00010999,2]
[333456429,1722144634002,-505.31437177,0.00010999,2]
[333456430,1722144634011,-500.0,0.00010999,2]
[333456431,1722144634021,-507.0004838,0.00010999,2]
[333456432,1722144634029,-500.0,0.00010999,2]
[333456433,1722144634039,-500.0,0.00010999,2]
[333456434,1722144634048,-500.0,0.00010999,2]
[333456435,1722144634057,-500.0,0.00010999,2]
[333456436,1722144634067,-500.0,0.00010999,2]
[333456437,1722144634076,-152.37,0.00010999,2]
[333456438,1722144634085,-500.0,0.00010999,2]
[333456439,1722144634094,-501.82967093,0.00010999,2]
[333456440,1722144634104,-500.0,0.00010999,2]
[333456441,1722144634115,-500.0,0.00010999,2]
[333456442,1722144634124,-500.0,0.00010999,2]
[333456443,1722144634134,-504.9538889,0.00010999,2]
[333456444,1722144634143,-500.0,0.00010999,2]
[333456445,1722144634153,-507.07699821,0.00010999,2]
[333456446,1722144634163,-500.0,0.00010999,2]
[333456447,1722144634172,-500.0,0.00010999,2]
[333456448,1722144634182,-561.14951638,0.00010999,2]
[333456449,1722144634192,-417.10186646,0.00010999,2]
[333456450,1722144634202,-500.0,0.00010999,2]
[333456451,1722144634211,-502.71580165,0.00010999,2]
[333456452,1722144634221,-500.0,0.00010999,2]
[333456453,1722144634230,-500.36348804,0.00010999,2]
[333456454,1722144634240,-500.0,0.00010999,2]
[333456455,1722144634250,-632.48205278,0.00010999,2]
[333456456,1722144634259,-500.0,0.00010999,2]
[333456457,1722144634272,-501.25786254,0.00010999,2]
[333456458,1722144634281,-324.06850603,0.00010999,2]
[333456459,1722144634290,-500.0,0.00010999,2]
[333456460,1722144634300,-500.66324433,0.00010999,2]
[333456461,1722144634309,-500.0,0.00010999,2]
[333456462,1722144634319,-502.23488581,0.00010999,2]
[333456463,1722144634328,-500.0,0.00010999,2]
[333456464,1722144634338,-501.89273714,0.00010999,2]
[333456465,1722144634347,-500.0,0.00010999,2]
[333456466,1722144634358,-500.0,0.00010999,2]
[333456467,1722144634367,-500.0,0.00010999,2]
[333456468,1722144634377,-636.85875156,0.00010999,2]
[333456469,1722144634386,-500.0,0.00010999,2]
[333456470,1722144634396,-500.0,0.00010999,2]
[333456471,1722144634406,-596.76844723,0.00010999,2]
[333456472,1722144634416,-500.0,0.00010999,2]
[333456473,1722144634425,-500.0,0.00010999,2]
[333456474,1722144634435,-279.73249937,0.00010999,2]
[333456475,1722144634449,-354.1431874,0.00010999,2]
[333456476,1722144634458,-500.0,0.00010999,2]
[333456477,1722144634468,-507.22295081,0.00010999,2]
[333456478,1722144634477,-501.21293572,0.00010999,2]
[333456479,1722144634488,-502.4350988,0.00010999,2]
[333456480,1722144634498,-504.30464077,0.00010999,2]
[333456481,1722144634508,-500.0,0.00010999,2]
[333456482,1722144634519,-500.0,0.00010999,2]
[333456483,1722144634530,-500.0,0.00010999,2]
[333456484,1722144634540,-500.0,0.00010999,2]
[333456485,1722144634550,-500.0,0.00010999,2]
[333456486,1722144634559,-314.13297491,0.00010999,2]
[333456487,1722144634569,-500.0,0.00010999,2]
[333456488,1722144634579,-500.0,0.00010999,2]
[333456489,1722144634589,-521.79592534,0.00010999,2]
[333456490,1722144634598,-500.0,0.00010999,2]
[333456491,1722144634609,-500.0,0.00010999,2]
[333456492,1722144634618,-500.0,0.00010999,2]
[333456493,1722144634628,-500.0,0.00010999,2]
[333456494,1722144634637,-500.0,0.00010999,2]
[333456495,1722144634647,-402.58585212,0.00010999,2]
[333456496,1722144634657,-500.0,0.00010999,2]
[333456497,1722144634667,-500.0,0.00010999,2]
[333456498,1722144634676,-500.0,0.00010999,2]
[333456499,1722144634686,-500.0,0.00010999,2]
[333456500,1722144634695,-500.0,0.00010999,2]
[333456501,1722144634704,-500.0,0.00010999,2]
[333456502,1722144634713,-416.54398898,0.00010999,2]
[333456503,1722144634723,-585.0,0.00011,2]
[333456504,1722144634732,-454379.23594184,0.00011,2]
[333456505,1722144634963,-94825.42483236,0.00011,2]
[333456506,1722144634975,-2757.28875659,0.00011,2]
[333456507,1722144634987,-2977.63233919,0.00011,2]
[333456508,1722144638229,-500.0,0.00010998,2]
[333456509,1722144638238,-94.35965128,0.00010998,2]
[333456510,1722144638251,-405.64034872,0.00010998,2]
[333456511,1722144638260,-469.25965128,0.00010998,2]
[333456512,1722144638272,-30.74034872,0.00010998,2]
[333456513,1722144638282,-1110.42705791,0.00011,2]
[333456514,1722144638293,-1803.52865084,0.00011,2]
[333456515,1722144638304,-300.32,0.00011,2]
[333456516,1722144638315,-11377.15493044,0.00011,2]
[333456517,1722144638326,-2253.52196766,0.00011,2]
[333456518,1722144638337,-940.01040132,0.00011,2]
[333456519,1722144638348,-519.980028,0.00011,2]
[333456520,1722144638377,-1151.7587563,0.00011,2]
[333456521,1722144638388,-320.03674283,0.00011,2]
[333456522,1722144638399,-3163.29177813,0.00011,2]
[333456523,1722144638442,-1391.18950319,0.00011,2]
[333456524,1722144638462,-46119.55710123,0.00011,2]
[333456525,1722144638474,-1002.20146567,0.00011,2]
[333456526,1722144638487,-15859.54,0.00011,2]
[333456527,1722144638500,-479.23585153,0.00011,2]
[333456528,1722144638510,-500.0,0.00011,2]
[333456529,1722144638521,-6874.19597628,0.00011,2]
[333456530,1722144638533,-7247.88125866,0.00011,2]
[333456531,1722144638544,-7173.35954135,0.00011,2]
[333456532,1722144638555,-9901.01985224,0.00011,2]
[333456533,1722144638566,-5085.22599903,0.00011,2]
[333456534,1722144638577,-5726.34454775,0.00011,2]
[333456535,1722144638588,-1656.96940033,0.00011,2]
[333456536,1722144638599,-1888.89310926,0.00011,2]
[333456537,1722144638611,-1856.5631075,0.00011,2]
[333456538,1722144638621,-2879.43368562,0.00011,2]
[333456540,1722144638632,-3450.49798637,0.00011,2]
[333456542,1722144638643,-26558.21063687,0.00011,2]
[333456544,1722144638652,-35095.71909628,0.00011,2]
[333456546,1722144638667,-1949.91783652,0.00011,2]
[333456549,1722144638678,-48712.65287047,0.00011,2]
[333456551,1722144638689,-729.17517403,0.00011,2]
[333456553,1722144638700,-475.82133345,0.00011,2]
[333456555,1722144638711,-424.88308538,0.00011,2]
[333456557,1722144638722,-775.44461026,0.00011,2]
[333456559,1722144638733,-2212.331545,0.00011,2]
[333456560,1722144638744,-1288.24052914,0.00011,2]
[333456561,1722144638755,-810.16228092,0.00011,2]
[333456562,1722144638766,-673.40945464,0.00011,2]
[333456563,1722144638777,-1999.05404821,0.00011,2]
[333456564,1722144638789,-586.27968751,0.00011,2]
[333456565,1722144638800,-6810.39788908,0.00011,2]
[333456566,1722144638810,-1153.0,0.00011,2]
[333456567,1722144638821,-4800.900707,0.00011,2]
[333456570,1722144639579,-500.0,0.00010998,2]
[333456571,1722144639588,-17905.990843,0.00011,2]
[333456572,1722144639599,-7480.8599,0.00011,2]
[333456573,1722144639611,-8194.3,0.00011,2]
[333456574,1722144639642,-338.805,0.00011,2]
[333456575,1722144639764,-19533250.43561746,0.00011,2]
[333456576,1722144639773,-2000.0,0.00011,2]
[333456577,1722144639783,-4684771.60263654,0.00011,2]
[333456578,1722144639794,-354.16960267,0.00011,2]
[333456579,1722144639805,-250.13277065,0.00011,2]
[333456580,1722144639816,-7104.61058235,0.00011,2]
[333456581,1722144639828,-586.46506305,0.00011,2]
[333456582,1722144640131,-5460.04794797,0.00011,2]
[333456583,1722144640142,-1592.35012622,0.00011,2]
[333456584,1722144640333,-7903.55808998,0.00011,2]
[333456595,1722144642551,-500.0,0.00010999,2]
[333456596,1722144642560,-741.71219397,0.00011,2]
[333456597,1722144642571,-938.72103182,0.00011,2]
[333456598,1722144642582,-880.8,0.00011,2]
[333456599,1722144642593,-574.78646166,0.00011,2]
[333456600,1722144642617,-11209.15747998,0.00011,2]
[333456601,1722144642681,-5287.51751739,0.00011,2]
[333456602,1722144642746,-500.0,0.00010999,2]
[333456603,1722144642759,-500.0,0.00010999,2]
[333456604,1722144642768,-15411.34915101,0.00011,2]
[333456605,1722144642777,-32815.84097259,0.00011,2]
[333456606,1722144642788,-942.66174752,0.00011,2]
[333456607,1722144642867,-764.71084022,0.00011,2]
[333456856,1722144645639,-267.22567297,0.00010999,2]
[333456859,1722144645651,-96.29109359,0.00010999,2]
[333456860,1722144645661,-500.0,0.00010999,2]
[333456862,1722144645670,-9.84461023,0.00010999,2]
[333456873,1722144645778,-490.15538977,0.00010999,2]
[333456874,1722144645787,-7793.8985305,0.00011,2]
[333456876,1722144645798,-9199.06253858,0.00011,2]
[333456897,1722144646142,-243302.78730654,0.00011,2]
[333456899,1722144646154,-20052.01663723,0.00011,2]
[333456901,1722144646165,-1481.81984315,0.00011,2]
[333456903,1722144646176,-6458.78731941,0.00011,2]
[333456905,1722144646192,-1040.45485229,0.00011,2]
[333457681,1722145425931,-712.07,8.219e-05,2]
[333457682,1722145506836,858.20187844,8.219e-05,2]
[333457683,1722145518234,1091.70786771,8.219e-05,2]
[333457684,1722145519398,1530.01818463,8.219e-05,2]
[333457685,1722145523655,5808.00206922,8.219e-05,2]
[333457686,1722145523679,10000.0,8.219e-05,2]
[333457687,1722145523704,10000.0,8.219e-05,2]
[333457688,1722145523728,10000.0,8.219e-05,2]
[333457689,1722145523753,10000.0,8.219e-05,2]
[333457690,1722145523784,10000.0,8.219e-05,2]
[333457691,1722145523808,10000.0,8.219e-05,2]
[333457692,1722145523832,10000.0,8.219e-05,2]
[333457693,1722145523858,10000.0,8.219e-05,2]
[333457694,1722145523881,10000.0,8.219e-05,2]
[333457737,1722145831754,-646.388186,8.178e-05,2]
[333457738,1722145831767,-150.0,8.218e-05,2]
[333457739,1722145831778,-218.93430676,8.219e-05,2]
[333457740,1722145831983,-3207.29178138,8.219e-05,2]
[333457741,1722145831996,-6846.24438432,8.219e-05,2]
[333457742,1722145832167,-39559.96985549,8.219e-05,2]
[333457743,1722145832176,-18819.93809339,8.219e-05,2]
[333457744,1722145832185,-257.21686313,8.219e-05,2]
[333457745,1722145832194,-155.0,8.219e-05,2]
[333457746,1722145832204,-123631.36543744,8.219e-05,2]
[333457747,1722145832213,-155.0,8.219e-05,2]
[333457748,1722145832226,-830.23,8.219e-05,2]
[333457749,1722145832236,-255.0,9.04e-05,2]
[333457750,1722145832245,-250.0,9.785e-05,2]